[Event "*** Titled Tuesday Blitz"]
[Site "Chess.com"]
[Date "2018.01.02"]
[Round "1"]
[White "TastyFrenchFries"]
[Black "GMHess"]
[Result "0-1"]
[WhiteElo "2304"]
[BlackElo "2592"]
[TimeControl "180+2"]
[EndTime "13:10:16 PST"]
[Termination "GMHess won by checkmate"]

1. e4 {[%clk 0:03:01.9]} 1... d6 {[%clk 0:03:00.5]} 2. d4 {[%clk 0:02:52.8]}
2... Nf6 {[%clk 0:03:02.4]} 3. Bd3 {[%clk 0:02:51.7]} 3... e5 {[%clk 0:03:01.9]}
4. d5 {[%clk 0:02:47.2]} 4... g6 {[%clk 0:02:53.8]} 5. c4 {[%clk 0:02:47.6]}
5... Bg7 {[%clk 0:02:54.5]} 6. Nc3 {[%clk 0:02:48.3]} 6... O-O {[%clk
0:02:55.8]} 7. Nge2 {[%clk 0:02:45.6]} 7... a5 {[%clk 0:02:55.8]} 8. f3 {[%clk
0:02:44.1]} 8... Na6 {[%clk 0:02:56.9]} 9. Be3 {[%clk 0:02:19.2]} 9... Nc5
{[%clk 0:02:53.2]} 10. Bc2 {[%clk 0:02:17.4]} 10... Nh5 {[%clk 0:02:48.4]} 11.
O-O {[%clk 0:02:13.3]} 11... f5 {[%clk 0:02:48.1]} 12. exf5 {[%clk 0:02:14.5]}
12... gxf5 {[%clk 0:02:19.6]} 13. b3 {[%clk 0:02:14.4]} 13... Na6 {[%clk
0:02:07]} 14. a3 {[%clk 0:02:13]} 14... Bd7 {[%clk 0:01:58.3]} 15. Rb1 {[%clk
0:02:03.6]} 15... Qf6 {[%clk 0:01:51.7]} 16. Qd2 {[%clk 0:02:02]} 16... Rf7
{[%clk 0:00:52]} 17. b4 {[%clk 0:01:54.6]} 17... axb4 {[%clk 0:00:53.9]} 18.
axb4 {[%clk 0:01:55.3]} 18... Bf8 {[%clk 0:00:50.6]} 19. Rfd1 {[%clk 0:01:44.9]}
19... Rg7 {[%clk 0:00:46.4]} 20. Kh1 {[%clk 0:01:40.1]} 20... Qh4 {[%clk
0:00:44.7]} 21. Qe1 {[%clk 0:01:08.6]} 21... Qf6 {[%clk 0:00:25.6]} 22. Bf2
{[%clk 0:01:03.6]} 22... Be7 {[%clk 0:00:24.8]} 23. Rd2 {[%clk 0:00:52.8]} 23...
Kh8 {[%clk 0:00:22.8]} 24. Nd1 {[%clk 0:00:32.3]} 24... Rag8 {[%clk 0:00:21]}
25. g3 {[%clk 0:00:30.2]} 25... Qh6 {[%clk 0:00:21.5]} 26. b5 {[%clk 0:00:27.7]}
26... Nc5 {[%clk 0:00:22]} 27. Ndc3 {[%clk 0:00:27.3]} 27... Bg5 {[%clk
0:00:18.1]} 28. Rdd1 {[%clk 0:00:25.2]} 28... Be3 {[%clk 0:00:19.6]} 29. b6
{[%clk 0:00:23.3]} 29... Bxf2 {[%clk 0:00:17]} 30. Qxf2 {[%clk 0:00:25.2]} 30...
Nxg3+ {[%clk 0:00:17.6]} 31. Nxg3 {[%clk 0:00:23]} 31... Rxg3 {[%clk 0:00:19.5]}
32. bxc7 {[%clk 0:00:22.5]} 32... Rg2 {[%clk 0:00:17.5]} 33. Qxg2 {[%clk
0:00:22.9]} 33... Rxg2 {[%clk 0:00:19.4]} 34. Kxg2 {[%clk 0:00:23.7]} 34... f4
{[%clk 0:00:21]} 35. Kh1 {[%clk 0:00:19.3]} 35... Bh3 {[%clk 0:00:11.5]} 36. Ra1
{[%clk 0:00:18]} 36... Kg7 {[%clk 0:00:10.4]} 37. Rg1+ {[%clk 0:00:18.1]} 37...
Kf7 {[%clk 0:00:10.7]} 38. Ne4 {[%clk 0:00:13.3]} 38... Nxe4 {[%clk 0:00:11.7]}
39. Bxe4 {[%clk 0:00:13.6]} 39... Qf8 {[%clk 0:00:08.6]} 40. Ra7 {[%clk
0:00:14]} 40... Qc8 {[%clk 0:00:09.3]} 41. Bxh7 {[%clk 0:00:14.3]} 41... Qxc7
{[%clk 0:00:10.1]} 42. Bg6+ {[%clk 0:00:15.8]} 42... Kf6 {[%clk 0:00:11.1]} 43.
Be4 {[%clk 0:00:16.8]} 43... Qb6 {[%clk 0:00:11.2]} 44. Ra8 {[%clk 0:00:17.7]}
44... Ke7 {[%clk 0:00:04.7]} 45. Rh8 {[%clk 0:00:18.3]} 45... Bf5 {[%clk
0:00:03]} 46. Bxf5 {[%clk 0:00:18.4]} 46... Qd4 {[%clk 0:00:03.6]} 47. Be4
{[%clk 0:00:19.7]} 47... Qxc4 {[%clk 0:00:04.6]} 48. Rh7+ {[%clk 0:00:21.1]}
48... Kd8 {[%clk 0:00:06]} 49. Rh8+ {[%clk 0:00:22.2]} 49... Kc7 {[%clk
0:00:06.9]} 50. Rh7+ {[%clk 0:00:24.1]} 50... Kb8 {[%clk 0:00:07.6]} 51. Rb1
{[%clk 0:00:25.7]} 51... b5 {[%clk 0:00:08.3]} 52. Rh8+ {[%clk 0:00:26.1]} 52...
Kc7 {[%clk 0:00:09.3]} 53. Rh7+ {[%clk 0:00:27.6]} 53... Kb6 {[%clk 0:00:10.7]}
54. Rd7 {[%clk 0:00:28.7]} 54... b4 {[%clk 0:00:08.6]} 55. Rxd6+ {[%clk
0:00:29.5]} 55... Kb5 {[%clk 0:00:09.4]} 56. Re6 {[%clk 0:00:29.2]} 56... Qc3
{[%clk 0:00:08.2]} 57. Rxe5 {[%clk 0:00:29.3]} 57... Qxe5 {[%clk 0:00:09.2]} 58.
Bd3+ {[%clk 0:00:30.5]} 58... Kc5 {[%clk 0:00:10.2]} 59. Be4 {[%clk 0:00:32]}
59... Qc3 {[%clk 0:00:09.3]} 60. Kg2 {[%clk 0:00:30.2]} 60... b3 {[%clk
0:00:10.3]} 61. Kh3 {[%clk 0:00:31.3]} 61... Kd6 {[%clk 0:00:09.2]} 62. Kg4
{[%clk 0:00:30.9]} 62... Ke5 {[%clk 0:00:10.7]} 63. h4 {[%clk 0:00:31.5]} 63...
Qc8+ {[%clk 0:00:11.4]} 64. Kg5 {[%clk 0:00:31]} 64... Qg8+ {[%clk 0:00:11]} 65.
Kh6 {[%clk 0:00:31.6]} 65... Kf6 {[%clk 0:00:10.4]} 66. Rxb3 {[%clk 0:00:30]}
66... Qh8+ {[%clk 0:00:09.1]} 67. Bh7 {[%clk 0:00:31.1]} 67... Qg7+ {[%clk
0:00:09.8]} 68. Kh5 {[%clk 0:00:32.6]} 68... Qxh7+ {[%clk 0:00:11.4]} 69. Kg4
{[%clk 0:00:34.5]} 69... Qf5# {[%clk 0:00:13.2]} 0-1

[Event "*** Titled Tuesday Blitz"]
[Site "Chess.com"]
[Date "2018.01.02"]
[Round "1"]
[White "ChessicallyInclined"]
[Black "yosephtaher"]
[Result "0-1"]
[WhiteElo "2228"]
[BlackElo "2516"]
[TimeControl "180+2"]
[EndTime "13:10:23 PST"]
[Termination "yosephtaher won by resignation"]

1. d4 {[%clk 0:03:01.9]} 1... Nf6 {[%clk 0:03:00]} 2. c4 {[%clk 0:03:02.8]} 2...
e6 {[%clk 0:03:01.3]} 3. Nc3 {[%clk 0:03:02.6]} 3... c5 {[%clk 0:03:02.9]} 4. d5
{[%clk 0:03:02.8]} 4... exd5 {[%clk 0:03:04.8]} 5. cxd5 {[%clk 0:03:04]} 5... d6
{[%clk 0:03:06.3]} 6. e4 {[%clk 0:03:04.8]} 6... g6 {[%clk 0:03:07.9]} 7. Nge2
{[%clk 0:03:05.9]} 7... Bg7 {[%clk 0:03:09]} 8. Ng3 {[%clk 0:03:07]} 8... O-O
{[%clk 0:03:10.6]} 9. Be2 {[%clk 0:03:06.5]} 9... h5 {[%clk 0:03:10.8]} 10. Bg5
{[%clk 0:03:00.3]} 10... Qb6 {[%clk 0:03:05.4]} 11. Qd2 {[%clk 0:02:58]} 11...
Re8 {[%clk 0:03:06.1]} 12. O-O {[%clk 0:02:34.1]} 12... Bd7 {[%clk 0:03:06.4]}
13. f4 {[%clk 0:02:26.9]} 13... Ng4 {[%clk 0:02:57]} 14. Bxg4 {[%clk 0:02:19.6]}
14... Bxg4 {[%clk 0:02:56.3]} 15. f5 {[%clk 0:02:17.7]} 15... Be5 {[%clk
0:02:48]} 16. fxg6 {[%clk 0:02:11.8]} 16... fxg6 {[%clk 0:02:48]} 17. Bf6 {[%clk
0:01:58.5]} 17... Nd7 {[%clk 0:02:41]} 18. Qg5 {[%clk 0:01:37.8]} 18... Kh7
{[%clk 0:02:19.4]} 19. Be7 {[%clk 0:01:19.1]} 19... c4+ {[%clk 0:02:02.5]} 20.
Kh1 {[%clk 0:01:17.6]} 20... Qxb2 {[%clk 0:01:43.6]} 21. Na4 {[%clk 0:00:29]}
21... Qa3 {[%clk 0:01:25.3]} 22. Rf7+ {[%clk 0:00:27.7]} 22... Bg7 {[%clk
0:01:25.8]} 23. Raf1 {[%clk 0:00:21.3]} 23... Qd3 {[%clk 0:01:06.7]} 24. Nb2
{[%clk 0:00:14.4]} 24... Qd4 {[%clk 0:01:04.7]} 25. Nf5 {[%clk 0:00:11.7]} 25...
gxf5 {[%clk 0:00:49.5]} 26. exf5 {[%clk 0:00:13.2]} 26... Rxe7 {[%clk
0:00:35.5]} 27. Rxe7 {[%clk 0:00:12.6]} 27... Qf6 {[%clk 0:00:35.1]} 28. Qxf6
{[%clk 0:00:07.7]} 28... Nxf6 {[%clk 0:00:37]} 29. Nxc4 {[%clk 0:00:09.2]} 29...
Re8 {[%clk 0:00:33]} 30. Rxb7 {[%clk 0:00:08.6]} 30... Be2 {[%clk 0:00:32.8]}
31. Nxd6 {[%clk 0:00:04.3]} 31... Rd8 {[%clk 0:00:22.5]} 32. Nf7 {[%clk
0:00:04.6]} 32... Rxd5 {[%clk 0:00:21.4]} 33. Ng5+ {[%clk 0:00:05]} 33... Kg8
{[%clk 0:00:22.7]} 34. Re1 {[%clk 0:00:04.9]} 34... Rxf5 {[%clk 0:00:22.3]} 35.
Ne6 {[%clk 0:00:06]} 35... Bh6 {[%clk 0:00:20.4]} 36. Rb8+ {[%clk 0:00:06.6]}
36... Kh7 {[%clk 0:00:19.9]} 37. Rb7+ {[%clk 0:00:07.4]} 37... Kg6 {[%clk
0:00:19.4]} 38. g4 {[%clk 0:00:08.6]} 38... Bxg4 {[%clk 0:00:19.8]} 39. Rg1
{[%clk 0:00:08.4]} 39... Bg5 {[%clk 0:00:18.8]} 40. Nxg5 {[%clk 0:00:08.8]}
40... Rxg5 {[%clk 0:00:19.3]} 41. Rb3 {[%clk 0:00:06.1]} 41... Ne4 {[%clk
0:00:17.4]} 42. h3 {[%clk 0:00:05.3]} 42... Be6 {[%clk 0:00:13]} 43. Rxg5+
{[%clk 0:00:06.2]} 43... Kxg5 {[%clk 0:00:14.9]} 44. Ra3 {[%clk 0:00:06.8]}
44... Bxh3 {[%clk 0:00:13.6]} 45. Rxa7 {[%clk 0:00:05.6]} 45... h4 {[%clk
0:00:14]} 46. Kh2 {[%clk 0:00:06.7]} 46... Bf5 {[%clk 0:00:12.8]} 47. Ra5 {[%clk
0:00:07.7]} 47... Nf2 {[%clk 0:00:13]} 48. Ra3 {[%clk 0:00:06.1]} 48... Ng4+
{[%clk 0:00:11.2]} 49. Kh3 {[%clk 0:00:07.3]} 49... Ne5+ {[%clk 0:00:10.6]} 50.
Kh2 {[%clk 0:00:08.4]} 50... Kf4 {[%clk 0:00:12.1]} 51. Ra4+ {[%clk 0:00:09]}
51... Kg5 {[%clk 0:00:10.8]} 52. Rb4 {[%clk 0:00:09]} 52... h3 {[%clk
0:00:10.4]} 53. Rb3 {[%clk 0:00:08.8]} 53... Kh4 {[%clk 0:00:11.2]} 54. Rg3
{[%clk 0:00:09.1]} 54... Bg4 {[%clk 0:00:10.8]} 55. Rb3 {[%clk 0:00:08.4]} 55...
Nf3+ {[%clk 0:00:12.1]} 56. Kh1 {[%clk 0:00:09.6]} 56... Kg3 {[%clk 0:00:13.6]}
57. a4 {[%clk 0:00:09.5]} 57... Be6 {[%clk 0:00:13.8]} 58. Rd3 {[%clk
0:00:09.6]} 58... Bc4 {[%clk 0:00:14.8]} 59. Rc3 {[%clk 0:00:10.2]} 59... Bf1
{[%clk 0:00:15.5]} 60. Rxf3+ {[%clk 0:00:09.5]} 60... Kxf3 {[%clk 0:00:17.4]}
61. a5 {[%clk 0:00:10.4]} 61... Kg3 {[%clk 0:00:17.9]} 62. Kg1 {[%clk
0:00:11.2]} 62... Ba6 {[%clk 0:00:18.8]} 63. Kh1 {[%clk 0:00:11.1]} 63... Bb7+
{[%clk 0:00:20.7]} 64. Kg1 {[%clk 0:00:12.3]} 64... h2+ {[%clk 0:00:22.6]} 0-1

[Event "*** Titled Tuesday Blitz"]
[Site "Chess.com"]
[Date "2018.01.02"]
[Round "1"]
[White "bascheyaro"]
[Black "TST2014"]
[Result "0-1"]
[WhiteElo "2551"]
[BlackElo "2295"]
[TimeControl "180+2"]
[EndTime "13:10:33 PST"]
[Termination "TST2014 won by resignation"]

1. d4 {[%clk 0:02:56.5]} 1... Nf6 {[%clk 0:02:59.5]} 2. Nf3 {[%clk 0:02:57.2]}
2... g6 {[%clk 0:03:00]} 3. Bf4 {[%clk 0:02:58.3]} 3... Bg7 {[%clk 0:03:00.7]}
4. e3 {[%clk 0:02:59.9]} 4... O-O {[%clk 0:03:02.1]} 5. Nbd2 {[%clk 0:03:00.9]}
5... d6 {[%clk 0:03:03.3]} 6. Be2 {[%clk 0:03:02]} 6... Nh5 {[%clk 0:03:03]} 7.
Bg5 {[%clk 0:03:02.8]} 7... h6 {[%clk 0:02:44.8]} 8. Bh4 {[%clk 0:03:03.9]} 8...
g5 {[%clk 0:02:46.1]} 9. Bg3 {[%clk 0:03:05.1]} 9... Nd7 {[%clk 0:02:37.4]} 10.
Bd3 {[%clk 0:03:05.7]} 10... Ndf6 {[%clk 0:02:37.8]} 11. c3 {[%clk 0:03:03.5]}
11... c5 {[%clk 0:02:33.8]} 12. Qc2 {[%clk 0:03:03.5]} 12... b6 {[%clk
0:02:30.9]} 13. Ne4 {[%clk 0:03:04.1]} 13... Bb7 {[%clk 0:02:27.7]} 14. Nxf6+
{[%clk 0:03:02.1]} 14... Bxf6 {[%clk 0:02:29.2]} 15. Qe2 {[%clk 0:02:58.6]}
15... Re8 {[%clk 0:02:11.1]} 16. Rd1 {[%clk 0:02:52.4]} 16... Bg7 {[%clk
0:02:06.6]} 17. Bc4 {[%clk 0:02:21.8]} 17... Nxg3 {[%clk 0:02:00.9]} 18. hxg3
{[%clk 0:02:22.6]} 18... cxd4 {[%clk 0:01:30]} 19. cxd4 {[%clk 0:01:52.6]} 19...
e6 {[%clk 0:01:31]} 20. Ba6 {[%clk 0:01:50.4]} 20... Qc8 {[%clk 0:01:30.5]} 21.
Bxb7 {[%clk 0:01:50.4]} 21... Qxb7 {[%clk 0:01:32.1]} 22. O-O {[%clk 0:01:51.6]}
22... Rac8 {[%clk 0:01:32.6]} 23. Rc1 {[%clk 0:01:52.6]} 23... Qe4 {[%clk
0:01:33.2]} 24. Qa6 {[%clk 0:01:52.2]} 24... Qa8 {[%clk 0:01:29.7]} 25. a4
{[%clk 0:01:50.6]} 25... Rc6 {[%clk 0:01:28.2]} 26. a5 {[%clk 0:01:42]} 26...
Rec8 {[%clk 0:01:25.3]} 27. Rxc6 {[%clk 0:01:42.4]} 27... Qxc6 {[%clk
0:01:23.2]} 28. Qxa7 {[%clk 0:01:38]} 28... b5 {[%clk 0:01:17.8]} 29. b4 {[%clk
0:01:15.2]} 29... Ra8 {[%clk 0:01:16.3]} 30. Qe7 {[%clk 0:01:16.3]} 30... Re8
{[%clk 0:01:09.9]} 31. d5 {[%clk 0:01:16.2]} 31... exd5 {[%clk 0:01:03.1]} 32.
Qa7 {[%clk 0:01:17.2]} 32... Re4 {[%clk 0:01:00]} 33. a6 {[%clk 0:01:13.1]}
33... Rxb4 {[%clk 0:01:00.5]} 34. Qb8+ {[%clk 0:01:13.3]} 34... Kh7 {[%clk
0:01:00.8]} 35. Qb7 {[%clk 0:01:13.9]} 35... Rc4 {[%clk 0:00:48]} 36. Nd4 {[%clk
0:01:14.9]} 36... Bxd4 {[%clk 0:00:47.7]} 37. exd4 {[%clk 0:01:16]} 37... Kg7
{[%clk 0:00:42.2]} 38. Ra1 {[%clk 0:01:13.9]} 38... Qc8 {[%clk 0:00:20.9]} 39.
Qxd5 {[%clk 0:01:06.5]} 39... Rc1+ {[%clk 0:00:19.5]} 40. Rxc1 {[%clk
0:01:06.9]} 40... Qxc1+ {[%clk 0:00:21]} 41. Kh2 {[%clk 0:01:08.5]} 41... b4
{[%clk 0:00:21.3]} 42. a7 {[%clk 0:01:08.9]} 42... b3 {[%clk 0:00:19.7]} 43. Qc4
{[%clk 0:01:09.8]} 43... Qxc4 {[%clk 0:00:19.4]} 44. a8=Q {[%clk 0:01:08.1]}
44... Qxd4 {[%clk 0:00:20.6]} 45. Qb7 {[%clk 0:01:01.4]} 45... b2 {[%clk
0:00:20.9]} 46. Qb3 {[%clk 0:00:56.2]} 46... Qxf2 {[%clk 0:00:19.4]} 47. Qc3+
{[%clk 0:00:57.5]} 47... f6 {[%clk 0:00:20.2]} 48. Qc7+ {[%clk 0:00:57.7]} 48...
Kg6 {[%clk 0:00:21.5]} 49. Qb7 {[%clk 0:00:57]} 49... Qc2 {[%clk 0:00:20.4]} 50.
Qb8 {[%clk 0:00:57.6]} 50... b1=Q {[%clk 0:00:20.1]} 51. Qg8+ {[%clk 0:00:58.3]}
51... Kf5 {[%clk 0:00:20.9]} 52. Qd5+ {[%clk 0:00:58.8]} 52... Kg6 {[%clk
0:00:18.9]} 53. Qg8+ {[%clk 0:00:59.5]} 53... Kh5 {[%clk 0:00:19.3]} 54. Qf7+
{[%clk 0:01:00.1]} 54... Qg6 {[%clk 0:00:19.4]} 55. Qe6 {[%clk 0:00:58.4]} 55...
Qbf5 {[%clk 0:00:17.9]} 56. Qxd6 {[%clk 0:00:53]} 56... Qe5 {[%clk 0:00:17.9]}
57. Qd7 {[%clk 0:00:53.5]} 57... g4 {[%clk 0:00:17.9]} 58. Qc8 {[%clk
0:00:53.2]} 58... Kg5 {[%clk 0:00:16.6]} 59. Qc1+ {[%clk 0:00:52.5]} 59... Kh5
{[%clk 0:00:17.3]} 60. Qc8 {[%clk 0:00:52.7]} 60... f5 {[%clk 0:00:17]} 61. Qd8
{[%clk 0:00:53.2]} 61... Qef6 {[%clk 0:00:14.9]} 62. Qd5 {[%clk 0:00:51.8]}
62... Qgg5 {[%clk 0:00:14.8]} 63. Qd7 {[%clk 0:00:40.4]} 63... f4 {[%clk
0:00:13.2]} 64. Qe8+ {[%clk 0:00:41.4]} 64... Qfg6 {[%clk 0:00:13.1]} 65. Kh1
{[%clk 0:00:38.2]} 65... Qxe8 {[%clk 0:00:11.7]} 0-1

[Event "*** Titled Tuesday Blitz"]
[Site "Chess.com"]
[Date "2018.01.02"]
[Round "1"]
[White "AlexTriapishko"]
[Black "NormWeinstein"]
[Result "1-0"]
[WhiteElo "2601"]
[BlackElo "2307"]
[TimeControl "180+2"]
[EndTime "13:10:36 PST"]
[Termination "AlexTriapishko won by resignation"]

1. e4 {[%clk 0:02:58.5]} 1... c5 {[%clk 0:02:57.6]} 2. Nf3 {[%clk 0:02:58.9]}
2... d6 {[%clk 0:02:58.8]} 3. d4 {[%clk 0:02:59.5]} 3... Nf6 {[%clk 0:02:59.8]}
4. Nc3 {[%clk 0:03:00]} 4... cxd4 {[%clk 0:03:00.6]} 5. Nxd4 {[%clk 0:02:37.9]}
5... Nc6 {[%clk 0:03:01.2]} 6. Bg5 {[%clk 0:02:30.4]} 6... e6 {[%clk 0:02:59.4]}
7. Qd2 {[%clk 0:02:30.8]} 7... Be7 {[%clk 0:03:00.3]} 8. O-O-O {[%clk
0:02:30.9]} 8... O-O {[%clk 0:03:01.9]} 9. f3 {[%clk 0:02:30.4]} 9... d5 {[%clk
0:03:02.8]} 10. exd5 {[%clk 0:02:26.5]} 10... exd5 {[%clk 0:03:03.6]} 11. h4
{[%clk 0:02:24.2]} 11... Re8 {[%clk 0:03:04.5]} 12. Kb1 {[%clk 0:02:22.3]} 12...
Bd7 {[%clk 0:03:04.9]} 13. g4 {[%clk 0:02:17]} 13... Rc8 {[%clk 0:03:05.6]} 14.
Nb3 {[%clk 0:02:07.9]} 14... Be6 {[%clk 0:03:05.8]} 15. Nb5 {[%clk 0:02:04.7]}
15... a6 {[%clk 0:02:49.4]} 16. N5d4 {[%clk 0:02:04.5]} 16... Ne5 {[%clk
0:02:49.6]} 17. Qf2 {[%clk 0:01:46.5]} 17... Qc7 {[%clk 0:02:39.3]} 18. c3
{[%clk 0:01:35.1]} 18... b5 {[%clk 0:02:32.9]} 19. Bf4 {[%clk 0:01:20.1]} 19...
Bd6 {[%clk 0:02:32.2]} 20. g5 {[%clk 0:01:09]} 20... Nh5 {[%clk 0:02:27.3]} 21.
Bh2 {[%clk 0:01:10.3]} 21... Ng6 {[%clk 0:02:17.1]} 22. Bxd6 {[%clk 0:01:07]}
22... Qxd6 {[%clk 0:02:18]} 23. Bd3 {[%clk 0:01:05.7]} 23... Bd7 {[%clk
0:02:01]} 24. a3 {[%clk 0:01:05.1]} 24... Ngf4 {[%clk 0:01:54.9]} 25. Bc2 {[%clk
0:01:03.9]} 25... Re7 {[%clk 0:01:55.3]} 26. Rde1 {[%clk 0:00:58.2]} 26... Rce8
{[%clk 0:01:56.3]} 27. Ka2 {[%clk 0:00:48.2]} 27... g6 {[%clk 0:01:54.1]} 28.
Na5 {[%clk 0:00:41]} 28... Re5 {[%clk 0:01:46.8]} 29. Rxe5 {[%clk 0:00:38.3]}
29... Qxe5 {[%clk 0:01:47.7]} 30. Nb7 {[%clk 0:00:38.4]} 30... Qc7 {[%clk
0:01:44.1]} 31. Re1 {[%clk 0:00:28.9]} 31... Qxb7 {[%clk 0:01:44.8]} 32. Rxe8+
{[%clk 0:00:28.9]} 32... Bxe8 {[%clk 0:01:45.6]} 33. Qe3 {[%clk 0:00:30.8]}
33... Qd7 {[%clk 0:01:42]} 34. Qe5 {[%clk 0:00:31.8]} 34... Ne6 {[%clk 0:01:39]}
35. Bb3 {[%clk 0:00:19.6]} 35... Nxd4 {[%clk 0:01:35.6]} 36. cxd4 {[%clk
0:00:19.4]} 36... Qe6 {[%clk 0:01:30.5]} 37. Qb8 {[%clk 0:00:19.8]} 37... Kg7
{[%clk 0:01:31.6]} 38. Qd8 {[%clk 0:00:14.1]} 38... Bc6 {[%clk 0:01:30.3]} 39.
Qc7 {[%clk 0:00:14.2]} 39... Qd7 {[%clk 0:01:28.4]} 40. Qe5+ {[%clk 0:00:14.6]}
40... f6 {[%clk 0:01:29.6]} 41. Qb8 {[%clk 0:00:12.2]} 41... Qe7 {[%clk
0:01:13.4]} 42. Qc8 {[%clk 0:00:12.5]} 42... Bb7 {[%clk 0:01:10.5]} 43. Qb8
{[%clk 0:00:13.6]} 43... h6 {[%clk 0:01:06.5]} 44. gxh6+ {[%clk 0:00:13.5]}
44... Kh7 {[%clk 0:01:07.9]} 45. Bc2 {[%clk 0:00:11.9]} 45... Nf4 {[%clk
0:01:08.2]} 46. Qxf4 {[%clk 0:00:12]} 46... f5 {[%clk 0:00:43.8]} 47. h5 {[%clk
0:00:12.5]} 47... Bc8 {[%clk 0:00:45.3]} 48. hxg6+ {[%clk 0:00:12.8]} 48... Kxg6
{[%clk 0:00:46.5]} 49. Qe5 {[%clk 0:00:13.7]} 49... Qxe5 {[%clk 0:00:46.4]} 50.
dxe5 {[%clk 0:00:15.6]} 50... Kxh6 {[%clk 0:00:47.9]} 51. Kb3 {[%clk 0:00:17.1]}
51... Kg5 {[%clk 0:00:48.5]} 52. Kc3 {[%clk 0:00:18]} 52... Kf4 {[%clk 0:00:50]}
53. Kd4 {[%clk 0:00:19.3]} 53... Kxf3 {[%clk 0:00:49.9]} 54. Bb3 {[%clk
0:00:19.2]} 54... f4 {[%clk 0:00:32.3]} 55. Bxd5+ {[%clk 0:00:20.2]} 55... Ke2
{[%clk 0:00:33.9]} 56. e6 {[%clk 0:00:21.3]} 56... f3 {[%clk 0:00:34.6]} 57. e7
{[%clk 0:00:18.1]} 57... Bd7 {[%clk 0:00:33.3]} 58. Be6 {[%clk 0:00:17.5]} 58...
Be8 {[%clk 0:00:31.1]} 59. Bg4 {[%clk 0:00:18.4]} 59... Kd2 {[%clk 0:00:29.8]}
60. Bxf3 {[%clk 0:00:18.8]} 60... Kc2 {[%clk 0:00:31.4]} 61. b4 {[%clk
0:00:19.7]} 61... Kb3 {[%clk 0:00:32.4]} 62. Kc5 {[%clk 0:00:17.9]} 62... Kxa3
{[%clk 0:00:33.3]} 63. Bb7 {[%clk 0:00:19.3]} 63... a5 {[%clk 0:00:28.6]} 64.
bxa5 {[%clk 0:00:19.9]} 64... b4 {[%clk 0:00:28.3]} 65. a6 {[%clk 0:00:20.8]}
65... b3 {[%clk 0:00:29.7]} 66. a7 {[%clk 0:00:20.7]} 66... b2 {[%clk
0:00:31.2]} 67. a8=Q+ {[%clk 0:00:20.8]} 67... Kb3 {[%clk 0:00:31.9]} 68. Be4
{[%clk 0:00:20.4]} 68... b1=Q {[%clk 0:00:32]} 69. Bxb1 {[%clk 0:00:20]} 1-0